bitfinex/quotes_ETHUSD_20240717
["timestamp","ask_amount","ask_price","bid_price","bid_amount"]
[1721250708142,2.93859,3403.0,3401.4,5.28751]
[1721250708342,3.02050273,3402.8,3401.5,3.468561]
[1721250708542,2.93881,3402.8,3401.5,0.528751]
[1721250708968,2.2928,3402.6,3401.4,2.3476]
[1721250709244,2.2928,3402.6,3400.6,5.36234]
[1721250709245,2.93959,3401.9,3400.6,5.36234]
[1721250709463,0.08123257,3401.8,3400.6,5.36234]
[1721250709861,0.08123257,3401.8,3400.6,2.4217]
[1721250710064,7.31,3402.3,3401.0,2.94024]
[1721250710401,0.08115242,3402.2,3401.3,2.94004]
[1721250710993,9.6028,3402.6,3401.3,2.94004]
[1721250711319,9.6028,3402.6,3401.4,0.55]
[1721250711320,12.54179,3402.6,3401.4,0.55]
[1721250711498,0.08090502,3402.5,3401.1,0.547124]
[1721250711679,2.93924,3402.3,3400.9,3.0]
[1721250711876,0.37470502,3402.5,3400.6,2.4217]
[1721250711877,2.93953,3401.9,3400.6,2.4217]
[1721250712179,2.93953,3401.9,3400.6,5.36233]
[1721250712376,0.08091878,3401.8,3400.6,5.36233]
[1721250713119,2.93971,3401.7,3400.4,2.94076]
[1721250713408,0.84229588,3401.6,3400.5,3.40151009]
[1721250713808,0.08091878,3401.5,3400.5,3.40151009]
[1721250715506,0.08091878,3401.5,3400.5,0.46078009]
[1721250715679,3.02082878,3401.5,3400.5,0.46078009]
[1721250715865,3.02082878,3401.5,3400.4,3.0]
[1721250716068,0.70966347,3401.4,3400.3,3.0]
[1721250716288,0.08071256,3401.3,3400.3,3.0]
[1721250717617,0.08071256,3401.3,3400.6,2.94064]
[1721250717789,0.08071256,3401.3,3400.8,2.94047]
[1721250717996,7.31,3401.7,3400.8,2.94047]
[1721250718315,8.31666,3401.7,3400.8,2.94047]
[1721250718522,0.08067359,3401.6,3400.8,2.94047]
[1721250718743,0.08067359,3401.6,3401.1,2.94022]
[1721250719027,0.08067359,3401.6,3400.5,2.4459]
[1721250719028,0.08067359,3401.6,3400.1,2.941]
[1721250719203,0.08067359,3401.6,3400.2,3.49099]
[1721250719204,2.2946,3401.5,3400.2,3.49099]
[1721250719719,0.08073775,3401.4,3400.2,3.49099]
[1721250720294,0.08073775,3401.4,3399.6,2.94146]
[1721250720295,2.94013,3401.3,3399.6,2.94146]
[1721250720506,2.4329,3401.0,3399.6,2.94146]
[1721250720832,0.537318,3400.9,3399.6,3.78722075]
[1721250721132,0.08055211,3400.8,3399.6,0.84576075]
[1721250721286,2.94068,3400.6,3399.2,2.94181]
[1721250721620,0.08052002,3400.5,3399.2,2.94181]
[1721250721819,0.08052002,3400.5,3399.3,3.0915575]
[1721250722383,0.08052002,3400.5,3399.4,2.94163]
[1721250722617,0.08052002,3400.5,3399.4,3.59104789]
[1721250722618,0.68264002,3400.5,3399.4,3.59104789]
[1721250723184,0.08052002,3400.5,3400.1,2.94108]
[1721250723393,0.08052002,3400.5,3399.9,2.9412]
[1721250723394,0.22452002,3400.5,3399.9,2.9412]
[1721250723623,0.144,3400.5,3400.0,3.49115]
[1721250723981,0.144,3400.5,3400.1,2.94107]
[1721250724400,0.144,3400.5,3400.2,2.94096]
[1721250724602,0.144,3400.5,3400.3,0.643211]
[1721250724843,0.144,3400.5,3400.3,3.584111]
[1721250725701,0.144,3400.5,3400.4,2.94083]
[1721250729764,0.144,3400.5,3399.4,1.00083619]
[1721250730046,0.144,3400.5,3399.6,2.94144]
[1721250730341,0.07744401,3400.4,3399.2,4.825]
[1721250730537,0.07744401,3400.4,3399.1,3.40288137]
[1721250730538,0.39365941,3400.4,3399.1,0.46095137]
[1721250730698,3.33453941,3400.4,3399.1,0.46095137]
[1721250731139,2.3499,3400.1,3399.1,0.46095137]
[1721250731624,0.07737731,3400.0,3398.8,2.531]
[1721250732847,0.07737731,3400.0,3398.8,5.47321]
[1721250733255,0.07737731,3400.0,3399.3,4.9590875]
[1721250733427,0.07737731,3400.0,3399.3,5.74917625]
[1721250733636,3.0,3400.4,3399.3,0.93987625]
[1721250733963,2.3128,3399.8,3399.3,0.1497875]
[1721250734457,0.07699298,3399.7,3399.3,0.1497875]
[1721250734831,2.3128,3399.8,3399.3,0.1497875]
[1721250735151,0.525407,3399.7,3399.3,0.1497875]
[1721250735324,0.60239998,3399.7,3399.3,0.1497875]
[1721250735727,0.07699298,3399.7,3399.3,0.1497875]
[1721250736257,7.31,3400.1,3399.3,0.1497875]
[1721250736466,0.07686407,3399.6,3399.3,0.1497875]
[1721250736626,2.94126,3399.9,3399.3,0.1497875]
[1721250736820,0.07686637,3399.5,3399.3,0.1497875]
[1721250737020,2.94136,3399.8,3399.3,0.1497875]
[1721250737332,0.588262,3399.7,3399.3,0.1497875]
[1721250737528,0.66514219,3399.7,3399.3,0.1497875]
[1721250737756,3.60657219,3399.7,3399.3,0.1497875]
[1721250739354,2.94154,3399.6,3399.3,0.1497875]
[1721250739776,0.07683643,3399.5,3399.3,0.1497875]
[1721250740217,10.2511,3400.1,3399.3,0.1497875]
[1721250740420,0.07679038,3399.4,3399.3,0.1497875]
[1721250740696,7.31,3400.1,3399.3,0.1497875]
[1721250740869,0.07679038,3399.4,3399.3,5.6225675]
[1721250741036,0.2938,3400.5,3399.4,0.55]
[1721250741357,0.07679962,3400.4,3399.7,2.531]
[1721250741562,0.07679962,3400.4,3399.8,0.8031]
[1721250741763,0.2938,3401.1,3399.8,3.74444]
[1721250741925,0.2938,3401.1,3399.9,2.94126]
[1721250742275,0.07434036,3401.0,3400.1,2.3714]
[1721250742577,0.2938,3401.6,3400.1,2.3714]
[1721250742578,0.2938,3401.6,3400.5,2.94066]
[1721250742719,2.93988,3401.5,3400.5,0.588151]
[1721250743061,0.07207884,3401.4,3400.2,3.0]
[1721250743227,0.07207884,3401.4,3400.1,5.31247]
[1721250743228,2.94014,3401.2,3400.1,2.3714]
[1721250743619,0.0722427,3401.1,3400.1,2.3714]
[1721250743818,0.0722427,3401.1,3399.3,0.1497875]
[1721250743819,2.94068,3400.6,3399.3,0.1497875]
[1721250744118,0.07239736,3400.5,3399.7,2.94141]
[1721250744314,3.02628,3401.6,3399.7,2.94141]
[1721250744315,2.93997,3401.4,3399.9,5.29864]
[1721250744552,0.07239736,3401.3,3400.2,2.94099]
[1721250744753,0.07239736,3401.3,3400.3,2.99963811]
[1721250744920,2.93962,3401.8,3400.4,2.94081]
[1721250745124,0.07226349,3401.7,3400.5,0.05880701]
[1721250745425,3.63648684,3401.7,3400.6,0.2999617]
[1721250745628,2.93979,3401.6,3400.0,2.94115]
[1721250745842,0.07226349,3401.7,3400.2,2.94091]
[1721250746149,5.49898,3402.2,3400.7,2.94049]
[1721250746331,0.07231889,3401.6,3400.8,3.49047]
[1721250746536,3.23308,3402.2,3400.8,5.90717]
[1721250746733,0.07241814,3402.1,3400.9,0.884766]
[1721250747478,3.01177814,3402.1,3400.9,0.884766]
[1721250747682,3.0,3402.0,3400.9,0.884766]
[1721250747860,0.07248505,3401.9,3400.9,0.884766]
[1721250748063,0.2938,3402.2,3400.9,0.884766]
[1721250748262,0.07248505,3402.1,3401.0,0.9732426]
[1721250748462,3.07248505,3402.1,3401.0,0.9732426]
[1721250748770,0.07248505,3402.1,3401.1,0.05880065]
[1721250748972,0.07248505,3402.1,3401.0,0.9732426]
[1721250749195,0.07248505,3402.1,3401.2,2.94013]
[1721250749376,7.31,3402.4,3401.3,3.93631726]
[1721250749702,1.19600182,3402.6,3401.3,3.93631726]
[1721250750000,0.07261428,3402.4,3401.7,2.93968]
[1721250750195,0.07261428,3402.4,3401.5,2.93987]
[1721250750492,0.07261428,3402.4,3401.6,0.55]
[1721250750809,0.07261428,3402.4,3401.8,2.4893]
[1721250750965,0.07261428,3402.4,3401.9,0.05878077]
[1721250751310,0.07282884,3402.3,3402.0,0.55]
[1721250751613,0.2938,3403.0,3402.0,0.55]
[1721250751776,0.07282884,3402.2,3402.0,0.55]
[1721250752095,3.2938,3403.0,3401.9,0.55]
[1721250752291,1.13320884,3402.9,3401.9,0.55]
[1721250753465,0.07282884,3402.9,3401.9,0.55]
[1721250753860,0.07282884,3402.9,3401.9,0.54668119]
[1721250754072,0.07282884,3402.9,3402.1,2.93935]
[1721250755004,0.07282884,3402.9,3402.3,2.93917]
[1721250755501,0.07282884,3402.9,3402.1,2.93935]
[1721250755711,0.07282884,3402.9,3401.9,3.48619119]
[1721250755712,0.07282884,3402.9,3402.2,3.58182412]
[1721250755893,0.07282884,3402.9,3402.3,0.55]
[1721250756296,0.07282884,3402.9,3402.3,3.48917]
[1721250756675,0.07282884,3402.9,3402.4,2.51927195]
[1721250756875,2.2717,3404.5,3402.7,2.93884]
[1721250756876,0.2938,3403.7,3402.7,2.93884]
[1721250757094,0.2938,3403.5,3402.8,1.198884]
[1721250757507,0.07327388,3403.4,3402.8,1.198884]
[1721250757875,0.07327388,3403.4,3403.0,2.93857]
[1721250758230,7.6038,3403.8,3403.1,0.55]
[1721250758414,0.07342601,3403.3,3402.9,2.93864]
[1721250758572,7.6038,3403.8,3403.0,1.2576234]
[1721250758767,0.07347211,3403.2,3403.1,2.93849]
[1721250759015,7.6038,3403.8,3403.1,3.48849]
[1721250759213,7.6038,3403.8,3403.1,2.93849]
[1721250762091,0.07371867,3404.0,3403.2,2.93832]
[1721250762290,0.07371867,3404.0,3403.3,1.192681]
[1721250762690,0.07371867,3404.0,3403.3,4.130991]
[1721250764584,7.31,3404.6,3403.5,2.93809]
[1721250764790,0.07378777,3403.9,3403.6,3.60874813]
[1721250764987,2.93694,3404.9,3403.6,3.60874813]
[1721250764988,2.9372,3404.6,3403.7,0.89203381]
[1721250765305,0.07384997,3404.5,3403.8,0.55]
[1721250765705,0.07384997,3404.5,3403.5,0.55]
[1721250766715,3.01114997,3404.5,3403.5,0.55]
[1721250770434,0.07384997,3404.5,3403.5,0.55]
[1721250770804,2.93725,3404.6,3403.5,0.55]
[1721250771000,0.0739237,3404.4,3403.6,0.96300057]
[1721250771338,0.07400201,3404.3,3403.7,0.55]
[1721250771638,2.9372,3404.6,3403.8,0.05875057]
[1721250771804,0.07401353,3404.2,3403.8,0.05875057]
[1721250772015,2.93706,3404.8,3403.9,0.55]
[1721250772347,2.93706,3404.8,3403.7,3.088]
[1721250772551,0.07401353,3404.7,3403.8,0.98684091]
[1721250772845,0.07401353,3404.7,3403.9,0.55]
[1721250773549,2.93694,3404.9,3403.9,0.55]
[1721250773847,0.07406649,3404.8,3404.0,0.05874593]
[1721250774017,0.07406649,3404.8,3403.9,0.55]
[1721250774018,0.07406649,3404.8,3404.1,0.70955868]
[1721250774221,2.93694,3404.9,3404.1,0.15955868]
[1721250774426,0.07406649,3404.7,3404.1,0.15955868]
[1721250774629,2.93694,3404.9,3404.1,0.15955868]
[1721250774943,2.93696,3404.9,3404.1,0.15955868]
[1721250775150,0.07406649,3404.8,3404.1,0.15955868]
[1721250782131,0.07406649,3404.8,3404.2,2.389]
[1721250782353,2.93692,3405.0,3404.3,0.25485587]
[1721250782564,0.07420926,3404.9,3404.1,0.15955868]
[1721250783054,2.93704,3404.8,3404.1,0.15955868]
[1721250783256,2.93704,3404.8,3403.9,0.55]
[1721250783428,0.07423229,3404.7,3403.9,0.55]
[1721250783843,3.01137229,3404.7,3403.9,0.55]
[1721250784697,2.9372,3404.6,3403.9,0.55]
[1721250784990,0.07423459,3404.5,3403.9,0.55]
[1721250785296,0.07423459,3404.5,3404.0,0.64638409]
[1721250785844,0.07423459,3404.5,3403.1,3.0]
[1721250786097,2.93823,3403.5,3402.5,2.3156]
[1721250786255,3.23174,3403.8,3402.5,2.3156]
[1721250786599,2.3454,3404.0,3402.1,2.4338]
[1721250786600,2.93876,3402.8,3402.1,2.4338]
[1721250787173,2.93884,3402.7,3402.1,2.4338]
[1721250787375,3.01294333,3402.7,3401.6,4.9718]
[1721250787556,0.07410333,3402.7,3402.0,2.538]
[1721250787895,7.31,3403.2,3402.0,2.59677663]
[1721250787896,10.24846,3403.2,3402.0,2.59677663]
[1721250788092,0.07355508,3402.6,3402.0,2.538]
[1721250788414,10.24846,3403.2,3402.0,2.538]
[1721250788415,0.07355508,3402.5,3402.0,2.538]
[1721250788760,2.93849,3403.1,3402.0,2.538]
[1721250788962,0.07355508,3403.0,3402.0,2.538]
[1721250789464,2.93876,3402.8,3402.1,3.0]
[1721250789902,2.93881,3402.8,3402.0,2.538]
[1721250790198,0.07355508,3402.7,3402.0,2.538]
[1721250790396,3.01239508,3402.7,3402.0,2.538]
[1721250790576,2.93884,3402.7,3402.0,2.538]
[1721250790771,0.07353664,3402.6,3402.0,2.538]
[1721250791714,0.21753664,3402.6,3402.0,2.538]
[1721250792216,2.9391,3402.4,3401.6,4.9718]
[1721250792721,3.01259284,3402.4,3401.6,4.9718]
[1721250793224,3.01259284,3402.4,3401.6,2.4338]
[1721250794715,5.95169284,3402.4,3401.2,2.538]
[1721250795330,5.95169284,3402.4,3401.1,2.3728]
[1721250797326,0.07349284,3402.4,3401.2,2.538]
[1721250797526,0.07349284,3402.4,3401.2,2.59678762]
[1721250797827,2.93902,3402.5,3401.2,5.47812]
[1721250798117,0.07313786,3402.4,3401.2,5.47812]
[1721250800789,3.01223786,3402.4,3401.2,5.47812]
[1721250803007,3.01223786,3402.4,3402.3,0.3936994]
[1721250803560,3.01223786,3402.4,3401.2,5.47812]
[1721250803736,3.01223786,3402.4,3401.3,1.335092]
[1721250805162,3.01223786,3402.4,3402.3,0.2]
[1721250807765,0.07313786,3402.4,3402.3,0.2]
[1721250808062,3.08294,3402.6,3402.3,0.2]
[1721250808263,0.07322315,3402.4,3402.3,0.2]
[1721250808465,2.93903,3402.5,3402.3,0.2]
[1721250808776,3.01232315,3402.4,3402.3,0.2]
[1721250810043,0.07322315,3402.4,3402.3,0.2]
[1721250810573,0.07322315,3402.4,3402.3,0.4]
[1721250810946,3.01232315,3402.4,3402.3,0.4]
[1721250813291,5.95142315,3402.4,3402.3,0.4]
[1721250813497,6.85486447,3402.4,3402.3,0.4]
[1721250814877,6.85486447,3402.4,3402.3,0.6]
[1721250816224,0.07322315,3402.4,3402.3,0.6]
[1721250816427,0.144,3402.6,3402.3,0.6]
[1721250816588,0.0731586,3402.4,3402.3,0.6]
[1721250816790,0.144,3402.6,3402.3,0.6]
[1721250816987,0.073154,3402.5,3402.3,0.6]
[1721250819325,0.073154,3402.5,3402.3,1.1138]
[1721250819536,0.073154,3402.5,3402.4,0.05877708]
[1721250819830,0.073154,3402.5,3402.4,5.5878]
[1721250822492,0.073154,3402.5,3402.4,11.5269]
[1721250822693,0.073154,3402.5,3402.4,14.52477347]
[1721250822892,0.073154,3402.5,3402.4,16.02985735]
[1721250825330,0.144,3402.6,3402.5,8.97302]
[1721250825546,0.9018037,3404.6,3403.3,2.2596]
[1721250825547,2.93722,3404.6,3403.3,2.2596]
[1721250825697,2.93732,3404.5,3403.3,4.7976]
[1721250825896,2.93732,3404.5,3403.4,0.55]
[1721250826117,2.93732,3404.5,3403.5,0.828593]
[1721250828154,2.93752,3404.3,3403.4,0.55]
[1721250828464,2.93752,3404.3,3402.7,2.93876]
[1721250828465,2.93808,3403.6,3402.7,2.2763]
[1721250828674,2.93796,3403.8,3402.7,2.2763]
[1721250828963,2.93799,3403.7,3402.7,2.2763]
[1721250829169,2.93799,3403.7,3402.7,3.20802074]
[1721250829374,2.93807,3403.6,3402.7,3.20802074]
[1721250829925,2.9383,3403.4,3402.3,3.766]
[1721250830236,2.93833,3403.3,3402.3,3.766]
[1721250830465,2.60533,3403.3,3402.3,3.766]
[1721250830978,2.27233,3403.3,3402.3,3.766]
[1721250831358,2.27233,3403.3,3402.4,0.55]
[1721250831669,2.27233,3403.3,3402.4,1.2354]
[1721250831873,2.9382,3403.5,3402.4,1.2354]
[1721250833059,0.07113265,3403.4,3402.4,1.2354]
[1721250834046,0.07113265,3403.4,3402.5,2.538]
[1721250834227,2.9381,3403.6,3402.6,1.597857]
[1721250834433,0.07113265,3403.5,3402.6,1.597857]
[1721250837789,0.07113265,3403.5,3402.9,2.538]
[1721250837944,0.07113265,3403.5,3403.0,0.55]
[1721250838140,7.31,3403.9,3403.0,0.55]
[1721250838464,7.31,3403.9,3403.1,0.602674]
[1721250838664,0.07104511,3403.8,3403.1,0.602674]
[1721250839185,2.93765,3404.1,3403.1,0.602674]
[1721250839360,0.07104511,3403.7,3403.1,0.602674]
[1721250839532,2.93765,3404.1,3403.1,0.602674]
[1721250839874,2.93765,3404.1,3403.2,0.3690674]
[1721250840033,0.07104511,3404.0,3403.2,0.3690674]
[1721250840544,3.00882511,3404.0,3403.2,0.3690674]
[1721250841093,2.93781,3403.9,3403.0,0.55]
[1721250841473,0.07145297,3403.8,3403.0,0.55]
[1721250842083,2.93771,3404.1,3403.0,0.55]
[1721250842280,0.07145297,3403.7,3403.0,3.48856]
[1721250842484,3.0,3404.2,3403.0,3.48856]
[1721250842773,0.07145297,3403.6,3403.1,0.896522]
[1721250843104,0.07145297,3403.5,3403.2,0.55]
[1721250843468,5.93755,3404.2,3403.3,2.4096]
[1721250843767,0.071476,3403.4,3403.3,2.4096]
[1721250843979,2.93755,3404.2,3403.3,2.9596]
[1721250844191,2.93755,3404.2,3403.3,3.1440682]
[1721250844603,0.071476,3404.1,3403.3,3.1440682]
[1721250844807,3.009126,3404.1,3403.3,3.1440682]
[1721250846104,0.071476,3404.1,3403.3,3.1440682]
[1721250846485,7.31,3404.3,3403.3,3.1440682]
[1721250846796,0.0692096,3404.0,3403.4,0.45905902]
[1721250846981,2.93742,3404.4,3403.4,0.45905902]
[1721250847184,0.0692096,3403.9,3403.4,0.45905902]
[1721250847501,0.0692096,3403.8,3403.4,0.45905902]
[1721250847822,0.0692096,3403.8,3403.5,0.55]
[1721250847977,0.0692096,3403.8,3403.6,0.8894839]
[1721250848175,3.0,3404.6,3403.7,0.55]
[1721250848516,5.93722,3404.6,3403.7,0.55]
[1721250849086,5.93722,3404.6,3403.5,0.55]
[1721250849809,2.9373,3404.5,3403.5,0.55]
[1721250849971,2.9373,3404.5,3403.6,0.31721397]
[1721250850303,0.2938,3404.5,3403.3,2.4096]
[1721250850504,2.93772,3404.0,3403.3,2.4096]
[1721250851506,2.93784,3403.9,3403.3,2.4096]
[1721250851675,2.93789,3403.8,3403.3,2.4096]
[1721250851871,2.9378,3404.0,3403.3,2.4096]
[1721250852783,2.93781,3403.9,3403.3,2.4096]
[1721250853382,0.2938,3404.3,3403.3,2.4096]
[1721250853692,2.93746,3404.3,3403.4,0.55]
[1721250854212,0.2938,3404.4,3403.3,2.4096]
[1721250854213,2.9377,3404.1,3403.3,2.4096]
[1721250854391,3.23154,3404.0,3403.3,2.4096]
[1721250855978,0.89500246,3404.3,3403.3,2.4096]
[1721250855979,2.93762,3404.2,3403.3,2.4096]
[1721250857714,2.93762,3404.2,3403.8,0.2]
[1721250858141,2.93763,3404.1,3403.8,0.2]
[1721250858706,0.06921423,3404.0,3403.8,0.2]
[1721250860906,0.06467229,3403.9,3403.8,0.2]
[1721250861114,3.53858246,3404.4,3403.8,0.2]
[1721250861414,2.32407439,3404.3,3403.8,0.2]
[1721250861613,2.38877918,3404.3,3403.8,0.2]
[1721250861940,0.76967454,3404.2,3403.8,0.2]
[1721250862300,0.76967454,3404.1,3403.8,0.2]
[1721250862500,0.06470479,3404.1,3403.8,0.2]
[1721250862933,0.06470479,3404.1,3403.8,0.4]
[1721250863138,0.06470479,3404.1,3403.9,2.2617]
[1721250863446,0.60120246,3404.5,3403.9,2.2617]
[1721250863447,0.60120246,3404.5,3404.0,0.51997]
[1721250863749,0.60120246,3404.6,3404.0,0.51997]
[1721250863931,2.32563836,3404.6,3404.0,0.51997]
[1721250864249,8.2118037,3404.7,3404.0,0.51997]
[1721250864250,2.32563836,3404.5,3404.0,0.51997]
[1721250864401,8.2118037,3404.7,3404.0,0.51997]
[1721250864402,7.91120246,3404.7,3404.0,0.51997]
[1721250864598,1.72484274,3404.6,3404.1,0.611951]
[1721250864800,7.91120246,3404.7,3404.1,0.611951]
[1721250865033,0.77056915,3404.6,3404.1,0.611951]
[1721250865442,7.31,3404.7,3404.1,0.611951]
[1721250868506,0.60120246,3404.8,3404.1,0.811951]
[1721250868721,0.60120246,3404.8,3404.2,0.6531421]
[1721250868932,0.60120246,3404.9,3404.2,0.6531421]
[1721250870516,2.33595225,3404.9,3404.2,0.6531421]
[1721250870722,0.77631583,3404.8,3404.2,0.6531421]
[1721250870942,0.60120246,3404.9,3404.2,0.6531421]
[1721250873736,0.60120246,3404.9,3404.3,0.15731121]
[1721250874146,2.33456522,3405.0,3404.4,2.4868]
[1721250874313,7.91120246,3405.1,3404.7,1.057]
[1721250874514,0.2938,3405.2,3404.7,1.057]
[1721250874515,0.77543472,3405.0,3404.7,1.057]
[1721250874712,3.60120246,3405.2,3404.7,1.057]
[1721250874947,2.33400404,3405.1,3404.7,1.057]
[1721250875126,0.60120246,3405.1,3404.7,1.057]
[1721250875324,1.7328353,3405.1,3404.7,1.057]
[1721250875556,3.60120246,3405.2,3404.7,1.057]
[1721250875710,1.732642,3405.1,3404.7,1.057]
[1721250875915,0.06486508,3405.1,3404.7,1.057]
[1721250876213,0.06486508,3405.1,3404.7,0.35438]
[1721250876637,0.60120246,3405.3,3404.7,0.35438]
[1721250876954,0.06486508,3405.0,3404.7,0.35438]
[1721250877112,0.60120246,3405.4,3404.7,0.35438]
[1721250877313,0.06486508,3404.9,3404.7,0.35438]
[1721250877543,0.60120246,3405.4,3404.7,0.35438]
[1721250877810,0.06486508,3404.8,3404.7,0.35438]
[1721250878241,0.60120246,3405.4,3404.7,0.35438]
[1721250878242,0.60120246,3405.4,3404.7,3.29149]
[1721250878449,7.31,3405.5,3404.8,6.816997]
[1721250878752,7.31,3405.5,3404.8,6.87572956]
[1721250878961,7.31,3405.5,3404.9,2.93687]
[1721250879112,7.31,3405.5,3405.2,2.4534]
[1721250880117,7.31,3405.5,3405.3,0.55]
[1721250880318,7.31,3405.9,3405.4,0.887672]
[1721250880513,0.9018037,3406.3,3405.4,0.887672]
[1721250880514,7.91120246,3406.2,3405.4,0.887672]
[1721250880852,0.77899834,3406.1,3405.4,0.887672]
[1721250881148,7.31,3406.2,3405.4,0.887672]
[1721250881924,7.31,3406.2,3405.5,0.55]
[1721250882125,7.31,3406.2,3405.6,0.7310762]
[1721250883364,7.31,3406.2,3405.7,2.2564]
[1721250884236,0.60120246,3406.6,3405.7,2.2564]
[1721250884423,5.35313828,3406.6,3405.7,2.2564]
[1721250884632,3.0,3406.6,3405.7,2.2564]
[1721250884834,2.667,3406.6,3405.7,2.2564]
[1721250885146,2.667,3406.6,3405.7,2.90379762]
[1721250885649,3.49732246,3406.8,3405.7,2.90379762]
[1721250885849,2.3520854,3406.7,3405.7,2.90379762]
[1721250887260,3.26820246,3406.7,3405.7,2.90379762]
[1721250887421,0.78582162,3406.6,3405.7,2.90379762]
[1721250887620,2.93539,3406.7,3405.8,0.71211838]
[1721250887821,3.0,3406.6,3405.7,2.90379762]
[1721250889953,2.93561,3406.5,3405.7,2.2564]
[1721250890357,5.87125,3406.5,3405.7,2.2564]
[1721250890719,2.93565,3406.4,3405.7,2.2564]
[1721250890920,3.00124879,3406.4,3405.7,2.2564]
[1721250891343,0.89368588,3406.3,3405.7,2.2564]
[1721250891863,0.06559879,3406.2,3405.7,2.2564]
[1721250892350,2.93565,3406.4,3405.7,2.2564]
[1721250892551,0.06559879,3406.1,3405.7,2.2564]
[1721250892761,2.93565,3406.4,3405.7,2.2564]
[1721250893054,3.822757,3406.4,3405.7,2.2564]
[1721250893257,3.00133879,3406.3,3405.7,2.2564]
[1721250894453,2.93582,3406.2,3405.3,4.9077]
[1721250894952,0.06559879,3406.1,3405.3,4.9077]
[1721250897646,3.822827,3406.4,3405.3,4.9077]
[1721250897879,0.06559879,3406.0,3405.4,0.784444]
[1721250898046,2.93574,3406.3,3405.4,0.784444]
[1721250898242,0.06559879,3406.2,3405.8,1.056]
[1721250898483,2.93574,3406.3,3405.8,1.056]
[1721250898658,0.06559879,3406.1,3405.8,1.056]
[1721250898861,2.93574,3406.3,3405.8,1.056]
[1721250899060,0.06559879,3406.0,3405.8,1.056]
[1721250899364,2.93574,3406.3,3405.8,1.056]
[1721250899573,0.06559879,3405.9,3405.8,1.056]
[1721250899773,2.93574,3406.3,3405.8,1.056]
[1721250899971,0.06559879,3405.9,3405.8,1.056]
[1721250900172,2.93574,3406.3,3405.8,1.056]
[1721250900350,2.9356,3406.5,3405.8,1.056]
[1721250900351,0.06559879,3405.9,3405.8,1.056]
[1721250900546,10.31,3406.6,3405.8,6.31316]
[1721250900547,7.31,3406.6,3405.8,6.31316]
[1721250900759,7.31,3406.6,3406.3,1.056]
[1721250900960,7.31,3406.6,3405.8,2.321]
[1721250900961,10.2455,3406.6,3405.8,2.321]
[1721250901146,1.056,3406.4,3405.8,2.321]
[1721250901349,2.93575,3406.3,3405.5,1.056]
[1721250901574,2.93575,3406.3,3405.4,2.3771]
[1721250901575,2.93587,3406.2,3405.4,2.3771]
[1721250901748,2.93587,3406.2,3405.5,1.056]
[1721250902389,3.58339011,3406.2,3405.5,1.056]
[1721250902549,2.93591,3406.1,3405.5,1.056]
[1721250904199,2.93591,3406.1,3405.3,1.056]
[1721250904404,2.93609,3405.9,3405.3,1.056]
[1721250905678,0.06340405,3405.8,3405.3,1.056]
[1721250905886,2.93626,3405.7,3405.0,3.469]
[1721250906050,2.99965471,3405.7,3405.0,3.469]
[1721250906849,2.99965471,3405.7,3405.2,1.056]
[1721250907283,2.99965471,3405.7,3405.0,3.469]
[1721250907487,0.71933234,3405.6,3405.0,1.056]
[1721250907691,3.71896,3405.6,3405.0,1.056]
[1721250909099,0.78262,3405.6,3405.0,1.056]
[1721250909257,0.06328766,3405.6,3405.0,1.056]
[1721250910293,0.06328766,3405.6,3405.4,1.056]
[1721250910470,0.60367114,3405.9,3405.4,1.056]
[1721250910669,0.60367114,3405.9,3405.3,2.3822]
[1721250910670,0.60367114,3406.0,3405.6,1.056]
[1721250910868,2.33398946,3406.0,3405.4,1.056]
[1721250911281,0.60367114,3406.0,3405.4,1.056]
[1721250911495,0.60367114,3405.9,3405.4,1.056]
[1721250912503,0.60367114,3406.1,3405.4,1.056]
[1721250912817,0.60367114,3405.7,3405.4,1.056]
[1721250913114,3.54006114,3405.6,3405.4,1.056]
[1721250913334,2.3344464,3405.5,3405.4,1.056]
[1721250913625,2.24873375,3405.5,3405.4,1.056]
[1721250914381,3.15749353,3405.5,3405.4,1.056]
[1721250914581,2.25568983,3405.5,3405.4,1.056]
[1721250914786,3.15767836,3405.5,3405.4,1.056]
[1721250915312,0.51795849,3405.5,3405.4,1.056]
[1721250915494,2.25589634,3405.5,3405.4,1.056]
[1721250915699,3.15770004,3405.5,3405.4,1.056]
[1721250915997,14.7234184,3405.5,3405.4,1.056]
[1721250916336,2.93742,3404.4,3403.7,2.4936]
[1721250916535,1.73743888,3404.3,3403.7,2.4936]
[1721250916687,0.77847033,3404.2,3403.7,2.4936]
[1721250916882,0.60541555,3404.3,3403.7,2.4936]
[1721250917113,5.27986599,3404.3,3403.7,2.4936]
[1721250917326,3.54287555,3404.3,3403.7,2.4936]
[1721250917528,0.71812149,3404.2,3403.7,2.4936]
[1721250917829,3.65549729,3404.1,3402.8,5.35094]
[1721250918036,1.63151227,3404.0,3402.8,8.28963]
[1721250918322,0.71779633,3403.9,3402.9,0.828963]
[1721250918522,0.60541555,3404.0,3402.9,0.828963]
[1721250918735,2.23593931,3404.0,3402.9,0.828963]
[1721250919030,0.71739416,3403.9,3402.9,0.828963]
[1721250919323,0.60541555,3404.0,3403.0,0.55]
[1721250919628,0.60541555,3404.0,3403.0,1.2229903]
[1721250919629,0.72178102,3404.0,3403.0,1.2229903]
[1721250920232,3.54305555,3404.1,3403.0,1.2229903]
[1721250920442,1.63854317,3404.0,3403.0,1.2229903]
[1721250920721,0.06049663,3403.9,3403.0,1.2229903]
[1721250920928,0.06049663,3403.9,3402.9,0.828963]
[1721250921096,0.06049663,3403.9,3402.8,2.4122]
[1721250921097,2.93812,3403.6,3402.8,2.4122]
[1721250921497,0.0603778,3403.5,3402.8,2.4122]